[Event "*** Titled Tuesday Blitz"]
[Site "Chess.com"]
[Date "2020.12.01"]
[Round "9"]
[White "igorkovalenko"]
[Black "ChessWarrior7197"]
[Result "1-0"]
[WhiteElo "2802"]
[BlackElo "2960"]
[TimeControl "180+1"]
[EndTime "11:47:20 PST"]
[Termination "igorkovalenko won by resignation"]

1. d4 {[%clk 0:03:00.9]} 1... d5 {[%clk 0:02:59.3]} 2. Nf3 {[%clk 0:03:01.8]}
2... Nf6 {[%clk 0:02:59.3]} 3. c4 {[%clk 0:03:01.9]} 3... e6 {[%clk 0:02:59.3]}
4. Nc3 {[%clk 0:03:01.7]} 4... Be7 {[%clk 0:02:59.8]} 5. Bf4 {[%clk 0:03:00.8]}
5... O-O {[%clk 0:03:00]} 6. e3 {[%clk 0:03:01.4]} 6... c5 {[%clk 0:03:00.6]} 7.
dxc5 {[%clk 0:03:01.4]} 7... Bxc5 {[%clk 0:03:00.5]} 8. Qc2 {[%clk 0:03:01.9]}
8... Nc6 {[%clk 0:03:00.9]} 9. Rd1 {[%clk 0:03:01.5]} 9... Qa5 {[%clk
0:03:01.2]} 10. Be2 {[%clk 0:02:58.1]} 10... Ne4 {[%clk 0:02:58.2]} 11. cxd5
{[%clk 0:02:51.9]} 11... exd5 {[%clk 0:02:55.7]} 12. O-O {[%clk 0:02:51.5]}
12... Nxc3 {[%clk 0:02:55.7]} 13. bxc3 {[%clk 0:02:52.4]} 13... Be7 {[%clk
0:02:47.7]} 14. Nd4 {[%clk 0:02:43.8]} 14... Bf6 {[%clk 0:02:43.5]} 15. Qb3
{[%clk 0:02:40.4]} 15... Ne5 {[%clk 0:02:17.6]} 16. Qb4 {[%clk 0:02:15.1]} 16...
Qxb4 {[%clk 0:01:48.5]} 17. cxb4 {[%clk 0:02:16]} 17... Bd7 {[%clk 0:01:49.4]}
18. Nb3 {[%clk 0:02:07.3]} 18... Be6 {[%clk 0:01:40.7]} 19. Nc5 {[%clk
0:01:50.5]} 19... Rfc8 {[%clk 0:01:35]} 20. Rc1 {[%clk 0:01:43]} 20... a5 {[%clk
0:01:31.1]} 21. b5 {[%clk 0:01:28.1]} 21... b6 {[%clk 0:01:26.1]} 22. Nxe6
{[%clk 0:01:25]} 22... fxe6 {[%clk 0:01:27]} 23. Bxe5 {[%clk 0:01:25.1]} 23...
Bxe5 {[%clk 0:01:26.7]} 24. Rc6 {[%clk 0:01:25.1]} 24... Rxc6 {[%clk 0:01:25.4]}
25. bxc6 {[%clk 0:01:26]} 25... Kf7 {[%clk 0:01:26.3]} 26. a4 {[%clk 0:01:22.3]}
26... Bd6 {[%clk 0:01:21.6]} 27. g3 {[%clk 0:01:21]} 27... Bc5 {[%clk
0:01:21.6]} 28. Kg2 {[%clk 0:01:20.9]} 28... Ke7 {[%clk 0:01:22]} 29. Bb5 {[%clk
0:01:20.3]} 29... Kd6 {[%clk 0:01:22.9]} 30. Rd1 {[%clk 0:01:16.9]} 30... Rf8
{[%clk 0:01:21.7]} 31. Rd2 {[%clk 0:01:16.6]} 31... e5 {[%clk 0:01:20.1]} 32. e4
{[%clk 0:01:14.4]} 32... d4 {[%clk 0:01:17]} 33. h4 {[%clk 0:01:14.2]} 33... Bb4
{[%clk 0:01:15.9]} 34. Rd3 {[%clk 0:01:14.1]} 34... Rc8 {[%clk 0:01:13]} 35. f4
{[%clk 0:01:12.1]} 35... Bc3 {[%clk 0:01:01.1]} 36. Kf3 {[%clk 0:01:08.3]} 36...
h5 {[%clk 0:00:53.7]} 37. f5 {[%clk 0:01:07.8]} 37... Rh8 {[%clk 0:00:51.5]} 38.
g4 {[%clk 0:01:07.1]} 38... Be1 {[%clk 0:00:48.7]} 39. g5 {[%clk 0:00:55.2]}
39... Bxh4 {[%clk 0:00:47]} 40. g6 {[%clk 0:00:55.2]} 40... Bg5 {[%clk
0:00:43.9]} 41. Kg2 {[%clk 0:00:53.4]} 41... h4 {[%clk 0:00:43.7]} 42. Kh3
{[%clk 0:00:53.8]} 42... Rc8 {[%clk 0:00:42.6]} 43. Kg4 {[%clk 0:00:51.7]} 43...
Bf6 {[%clk 0:00:41.9]} 44. Rd2 {[%clk 0:00:45.3]} 44... h3 {[%clk 0:00:37.9]}
45. Kxh3 {[%clk 0:00:33.6]} 45... Rh8+ {[%clk 0:00:37.4]} 46. Kg3 {[%clk
0:00:33.6]} 46... Rh4 {[%clk 0:00:35.9]} 47. Re2 {[%clk 0:00:21.9]} 47... Kc7
{[%clk 0:00:33.4]} 48. Kf2 {[%clk 0:00:18.2]} 48... Rh3 {[%clk 0:00:32.5]} 49.
Kg2 {[%clk 0:00:14.2]} 49... Rb3 {[%clk 0:00:27]} 50. Kf1 {[%clk 0:00:10.9]}
50... Bg5 {[%clk 0:00:26.7]} 51. Rg2 {[%clk 0:00:10.1]} 51... Bf6 {[%clk
0:00:22.1]} 52. Ke2 {[%clk 0:00:09.3]} 52... Re3+ {[%clk 0:00:20.9]} 53. Kd2
{[%clk 0:00:08.7]} 53... Rxe4 {[%clk 0:00:21.8]} 54. Rh2 {[%clk 0:00:05.7]}
54... Rf4 {[%clk 0:00:20.5]} 55. Rh8 {[%clk 0:00:05.5]} 55... e4 {[%clk
0:00:20.8]} 56. Rf8 {[%clk 0:00:04.7]} 56... Rf2+ {[%clk 0:00:09.1]} 57. Kd1
{[%clk 0:00:04.1]} 57... d3 {[%clk 0:00:08.2]} 58. Rf7+ {[%clk 0:00:03.9]} 58...
Kd6 {[%clk 0:00:07.6]} 59. c7 {[%clk 0:00:04.1]} 59... Rc2 {[%clk 0:00:07.5]}
60. Rxf6+ {[%clk 0:00:02.1]} 60... gxf6 {[%clk 0:00:08.4]} 61. g7 {[%clk
0:00:02.4]} 61... e3 {[%clk 0:00:09.3]} 62. Bxd3 {[%clk 0:00:02.4]} 62... Rd2+
{[%clk 0:00:07.2]} 63. Ke1 {[%clk 0:00:02.5]} 63... Rxd3 {[%clk 0:00:07.1]} 64.
g8=Q {[%clk 0:00:02.7]} 64... Kxc7 {[%clk 0:00:02.5]} 65. Qe6 {[%clk 0:00:03.6]}
65... Rd6 {[%clk 0:00:01.9]} 66. Qe7+ {[%clk 0:00:04.1]} 66... Kc6 {[%clk
0:00:02.8]} 67. Qxe3 {[%clk 0:00:04.5]} 67... Kd5 {[%clk 0:00:03.7]} 68. Qf3+
{[%clk 0:00:03.8]} 68... Ke5 {[%clk 0:00:03.9]} 69. Ke2 {[%clk 0:00:03.7]} 69...
Rd4 {[%clk 0:00:03.5]} 70. Qc3 {[%clk 0:00:03.9]} 70... Kd5 {[%clk 0:00:03.1]}
71. Qb3+ {[%clk 0:00:03.9]} 71... Ke5 {[%clk 0:00:02.4]} 72. Qb5+ {[%clk
0:00:03.9]} 72... Rd5 {[%clk 0:00:02.7]} 73. Qxb6 {[%clk 0:00:04.3]} 73... Kxf5
{[%clk 0:00:03.3]} 74. Ke3 {[%clk 0:00:04.7]} 74... Re5+ {[%clk 0:00:03.7]} 75.
Kf3 {[%clk 0:00:05.2]} 75... Kg6 {[%clk 0:00:04.3]} 76. Qb1+ {[%clk 0:00:05.5]}
76... Kg7 {[%clk 0:00:04.3]} 77. Kf4 {[%clk 0:00:06]} 77... Rg5 {[%clk 0:00:04]}
78. Qb7+ {[%clk 0:00:05.9]} 78... Kg6 {[%clk 0:00:04.4]} 79. Qe4+ {[%clk
0:00:06.4]} 79... Kf7 {[%clk 0:00:04.2]} 80. Qh7+ {[%clk 0:00:06.2]} 80... Kf8
{[%clk 0:00:03.8]} 81. Qc7 {[%clk 0:00:06.4]} 81... Re5 {[%clk 0:00:03.3]} 82.
Qd7 {[%clk 0:00:06.2]} 82... Kg8 {[%clk 0:00:03.2]} 83. Qd8+ {[%clk 0:00:06.3]}
83... Kg7 {[%clk 0:00:03.7]} 84. Qc8 {[%clk 0:00:06.5]} 84... Kf7 {[%clk
0:00:03.2]} 85. Qh8 {[%clk 0:00:06.2]} 85... Rg5 {[%clk 0:00:03.5]} 86. Qh6
{[%clk 0:00:06.4]} 86... Re5 {[%clk 0:00:03]} 87. Qh7+ {[%clk 0:00:06.6]} 87...
Ke6 {[%clk 0:00:03.5]} 88. Qg8+ {[%clk 0:00:06.3]} 88... Ke7 {[%clk 0:00:03.6]}
89. Qg7+ {[%clk 0:00:06.7]} 89... Ke6 {[%clk 0:00:04.5]} 90. Qf8 {[%clk
0:00:07.1]} 90... Rg5 {[%clk 0:00:04.6]} 91. Qe8+ {[%clk 0:00:06.9]} 91... Kd6
{[%clk 0:00:05.1]} 92. Qf7 {[%clk 0:00:07.3]} 92... Rd5 {[%clk 0:00:03.4]} 93.
Qxf6+ {[%clk 0:00:07]} 93... Kc5 {[%clk 0:00:04.3]} 94. Qe7+ {[%clk 0:00:04.7]}
94... Kc4 {[%clk 0:00:03.8]} 95. Ke4 {[%clk 0:00:04.5]} 95... Rd4+ {[%clk
0:00:03.6]} 96. Ke5 {[%clk 0:00:04.9]} 96... Rd5+ {[%clk 0:00:03.9]} 97. Ke6
{[%clk 0:00:05.2]} 97... Kd4 {[%clk 0:00:02.9]} 98. Qa3 {[%clk 0:00:04.5]} 98...
Re5+ {[%clk 0:00:02.6]} 99. Kd6 {[%clk 0:00:04.8]} 99... Rd5+ {[%clk 0:00:03]}
100. Kc6 {[%clk 0:00:05.1]} 100... Re5 {[%clk 0:00:03.4]} 101. Qb2+ {[%clk
0:00:04.8]} 101... Ke4 {[%clk 0:00:03.9]} 102. Qc3 {[%clk 0:00:04.8]} 102... Rg5
{[%clk 0:00:03]} 103. Qc4+ {[%clk 0:00:04.6]} 103... Ke3 {[%clk 0:00:02.4]} 104.
Kd6 {[%clk 0:00:04.8]} 104... Rf5 {[%clk 0:00:02.3]} 105. Ke6 {[%clk 0:00:05]}
105... Rh5 {[%clk 0:00:02.4]} 106. Kf6 {[%clk 0:00:05.2]} 106... Kf3 {[%clk
0:00:01.8]} 107. Qd4 {[%clk 0:00:04.9]} 107... Kg3 {[%clk 0:00:01.4]} 108. Kg6
{[%clk 0:00:04.7]} 108... Rh4 {[%clk 0:00:01.7]} 109. Qe3+ {[%clk 0:00:04.4]}
109... Kg2 {[%clk 0:00:02.1]} 110. Kg5 {[%clk 0:00:04.4]} 110... Rxa4 {[%clk
0:00:01.9]} 111. Qd2+ {[%clk 0:00:04.1]} 111... Kg3 {[%clk 0:00:02.3]} 112. Qc3+
{[%clk 0:00:04.4]} 112... Kh2 {[%clk 0:00:02.7]} 113. Qc2+ {[%clk 0:00:04.8]}
113... Kg3 {[%clk 0:00:02.5]} 114. Qxa4 {[%clk 0:00:05.7]} 114... Kf2 {[%clk
0:00:02.5]} 115. Qxa5 {[%clk 0:00:06.1]} 115... Ke3 {[%clk 0:00:03.4]} 116. Qc3+
{[%clk 0:00:06.4]} 1-0

[Event "*** Titled Tuesday Blitz"]
[Site "Chess.com"]
[Date "2020.12.01"]
[Round "9"]
[White "Bodnar_Mykola"]
[Black "GameOverBro"]
[Result "0-1"]
[WhiteElo "2390"]
[BlackElo "2527"]
[TimeControl "180+1"]
[EndTime "11:47:24 PST"]
[Termination "GameOverBro won by resignation"]

1. e4 {[%clk 0:03:00.9]} 1... d6 {[%clk 0:02:58.8]} 2. d4 {[%clk 0:03:00.3]}
2... Nf6 {[%clk 0:02:57.9]} 3. Nc3 {[%clk 0:03:00.6]} 3... e5 {[%clk 0:02:57.3]}
4. Nf3 {[%clk 0:03:00.3]} 4... Nbd7 {[%clk 0:02:57.3]} 5. Bc4 {[%clk 0:02:59.3]}
5... Be7 {[%clk 0:02:56.9]} 6. O-O {[%clk 0:02:56.9]} 6... c6 {[%clk 0:02:54.4]}
7. a4 {[%clk 0:02:56.6]} 7... Qc7 {[%clk 0:02:51.4]} 8. h3 {[%clk 0:02:47.3]}
8... h6 {[%clk 0:02:50]} 9. a5 {[%clk 0:02:44.3]} 9... Nf8 {[%clk 0:02:50]} 10.
Be3 {[%clk 0:02:41.8]} 10... Ng6 {[%clk 0:02:50]} 11. Re1 {[%clk 0:02:20.5]}
11... O-O {[%clk 0:02:49]} 12. Bb3 {[%clk 0:02:14.7]} 12... Kh7 {[%clk
0:02:48.6]} 13. Qd2 {[%clk 0:02:10.3]} 13... Nh5 {[%clk 0:02:48.3]} 14. Bc4
{[%clk 0:02:02.6]} 14... Nhf4 {[%clk 0:02:44.4]} 15. Bf1 {[%clk 0:02:03.1]}
15... Be6 {[%clk 0:02:37.7]} 16. Kh2 {[%clk 0:02:01.9]} 16... Rad8 {[%clk
0:02:37.2]} 17. g3 {[%clk 0:01:59.6]} 17... Nh5 {[%clk 0:02:36.4]} 18. Bg2
{[%clk 0:01:57.7]} 18... b5 {[%clk 0:02:18.2]} 19. axb6 {[%clk 0:01:55.4]} 19...
axb6 {[%clk 0:02:18.2]} 20. d5 {[%clk 0:01:55.9]} 20... cxd5 {[%clk 0:02:15.8]}
21. exd5 {[%clk 0:01:50.1]} 21... Bd7 {[%clk 0:02:14.8]} 22. Ra6 {[%clk
0:01:49.2]} 22... Rb8 {[%clk 0:02:14.3]} 23. Rea1 {[%clk 0:01:48.2]} 23... f5
{[%clk 0:02:12]} 24. Qe2 {[%clk 0:01:40.6]} 24... f4 {[%clk 0:02:08.6]} 25. Bd2
{[%clk 0:01:40.6]} 25... fxg3+ {[%clk 0:01:58.5]} 26. fxg3 {[%clk 0:01:41.5]}
26... b5 {[%clk 0:01:54.4]} 27. Nxe5 {[%clk 0:01:09.7]} 27... Nxg3 {[%clk
0:01:27.1]} 28. Qd3 {[%clk 0:00:56.1]} 28... Bf5 {[%clk 0:01:26.1]} 29. Qxg3
{[%clk 0:00:53]} 29... Nxe5 {[%clk 0:01:25.7]} 30. Ra7 {[%clk 0:00:50.7]} 30...
Rb7 {[%clk 0:01:24.6]} 31. Nxb5 {[%clk 0:00:48]} 31... Qb6 {[%clk 0:01:16.4]}
32. Rxb7 {[%clk 0:00:46.1]} 32... Qxb7 {[%clk 0:01:16.2]} 33. Ra7 {[%clk
0:00:46.8]} 33... Qxb5 {[%clk 0:01:16.3]} 34. Rxe7 {[%clk 0:00:47.2]} 34... Bg6
{[%clk 0:00:56.8]} 35. Bc3 {[%clk 0:00:30.9]} 35... Qe2 {[%clk 0:00:34.6]} 36.
Bxe5 {[%clk 0:00:29.2]} 36... dxe5 {[%clk 0:00:28.8]} 37. Qxe5 {[%clk
0:00:29.1]} 37... Qxe5+ {[%clk 0:00:25.4]} 38. Rxe5 {[%clk 0:00:30]} 38... Bxc2
{[%clk 0:00:22.7]} 39. Re2 {[%clk 0:00:28.9]} 39... Ba4 {[%clk 0:00:16.7]} 40.
d6 {[%clk 0:00:27.1]} 40... Rd8 {[%clk 0:00:15.6]} 41. Rd2 {[%clk 0:00:26.8]}
41... Kg6 {[%clk 0:00:15.7]} 42. h4 {[%clk 0:00:20.4]} 42... Kf6 {[%clk
0:00:15.4]} 43. Bh3 {[%clk 0:00:20.7]} 43... Ke5 {[%clk 0:00:13.7]} 44. d7
{[%clk 0:00:19.9]} 44... Kf6 {[%clk 0:00:10.8]} 45. Kg3 {[%clk 0:00:20.2]} 45...
Ke7 {[%clk 0:00:10.6]} 46. Kf4 {[%clk 0:00:20.3]} 46... g5+ {[%clk 0:00:09.8]}
47. hxg5 {[%clk 0:00:19.9]} 47... hxg5+ {[%clk 0:00:10.7]} 48. Kxg5 {[%clk
0:00:19.7]} 48... Bxd7 {[%clk 0:00:11.4]} 49. Re2+ {[%clk 0:00:14.8]} 49... Kd6
{[%clk 0:00:11.2]} 50. Rd2+ {[%clk 0:00:14.6]} 50... Kc7 {[%clk 0:00:11.3]} 51.
Bxd7 {[%clk 0:00:14.7]} 51... Rxd7 {[%clk 0:00:11.5]} 52. Rc2+ {[%clk
0:00:08.1]} 52... Kb6 {[%clk 0:00:11.8]} 53. Kf4 {[%clk 0:00:09]} 53... Kb5
{[%clk 0:00:12.2]} 54. Ke4 {[%clk 0:00:09.4]} 54... Kb4 {[%clk 0:00:12.8]} 55.
Rc8 {[%clk 0:00:09.6]} 55... Rb7 {[%clk 0:00:07.3]} 56. Rc3 {[%clk 0:00:09.4]}
56... Rd7 {[%clk 0:00:06.4]} 57. Ke3 {[%clk 0:00:08.5]} 57... Rd8 {[%clk
0:00:06.7]} 58. Ke2 {[%clk 0:00:08.4]} 58... Rd7 {[%clk 0:00:06.4]} 59. Rc8
{[%clk 0:00:07.4]} 59... Rb7 {[%clk 0:00:04.9]} 60. Kd2 {[%clk 0:00:06.3]} 60...
Kb3 {[%clk 0:00:04.2]} 61. Kc1 {[%clk 0:00:06.7]} 61... Rb6 {[%clk 0:00:01.1]}
62. Rc3+ {[%clk 0:00:06.7]} 62... Kb4 {[%clk 0:00:01.7]} 63. Kc2 {[%clk
0:00:07.6]} 63... Rf6 {[%clk 0:00:01.9]} 64. Rh3 {[%clk 0:00:08.5]} 64... Kb5
{[%clk 0:00:02.2]} 65. Rh5+ {[%clk 0:00:08.2]} 65... Kb6 {[%clk 0:00:03.1]} 66.
Kb3 {[%clk 0:00:07.3]} 66... Rc6 {[%clk 0:00:04]} 67. Kb4 {[%clk 0:00:07.1]}
67... Re6 {[%clk 0:00:04.4]} 68. Rb5+ {[%clk 0:00:07]} 68... Ka6 {[%clk
0:00:04.8]} 69. Rd5 {[%clk 0:00:07.1]} 69... Kb6 {[%clk 0:00:05]} 70. b3 {[%clk
0:00:07.2]} 70... Ka6 {[%clk 0:00:05.2]} 71. Ka4 {[%clk 0:00:06.9]} 71... Kb6
{[%clk 0:00:05.5]} 72. Rb5+ {[%clk 0:00:06.6]} 72... Ka6 {[%clk 0:00:06.1]} 73.
Rh5 {[%clk 0:00:07]} 73... Kb6 {[%clk 0:00:06.6]} 74. b4 {[%clk 0:00:07.4]}
74... Ka6 {[%clk 0:00:06.5]} 75. Rh8 {[%clk 0:00:08]} 75... Kb6 {[%clk
0:00:06.3]} 76. Rb8+ {[%clk 0:00:08]} 76... Ka7 {[%clk 0:00:06.6]} 77. Rd8
{[%clk 0:00:08.2]} 77... Re7 {[%clk 0:00:05.7]} 78. Ka5 {[%clk 0:00:07.9]} 78...
Rh7 {[%clk 0:00:05.8]} 79. Rd5 {[%clk 0:00:07]} 79... Kb7 {[%clk 0:00:06.1]} 80.
Rg5 {[%clk 0:00:07.3]} 80... Ka7 {[%clk 0:00:06.5]} 81. Rf5 {[%clk 0:00:07.9]}
81... Rg7 {[%clk 0:00:06.6]} 82. Kb5 {[%clk 0:00:08.5]} 82... Re7 {[%clk
0:00:06.7]} 83. Kc6 {[%clk 0:00:08.6]} 83... Rh7 {[%clk 0:00:06.6]} 84. b5
{[%clk 0:00:06.4]} 84... Rh6+ {[%clk 0:00:06.8]} 85. Kc5 {[%clk 0:00:06.5]}
85... Rh7 {[%clk 0:00:07.3]} 86. Rf6 {[%clk 0:00:06.2]} 86... Kb7 {[%clk
0:00:06.5]} 87. Rb6+ {[%clk 0:00:05.5]} 87... Kc7 {[%clk 0:00:06.3]} 88. Rf6
{[%clk 0:00:04.9]} 88... Rh5+ {[%clk 0:00:05.4]} 89. Kb4 {[%clk 0:00:05.4]}
89... Rh1 {[%clk 0:00:03.1]} 90. Rf7+ {[%clk 0:00:04.4]} 90... Kb8 {[%clk
0:00:02.2]} 91. Rf6 {[%clk 0:00:04.6]} 91... Kb7 {[%clk 0:00:01.7]} 92. Rf7+
{[%clk 0:00:04.6]} 92... Kb8 {[%clk 0:00:02.3]} 93. Kc5 {[%clk 0:00:05.5]} 93...
Rh6 {[%clk 0:00:02]} 94. Rf5 {[%clk 0:00:05.6]} 94... Rg6 {[%clk 0:00:02.1]} 95.
Rd5 {[%clk 0:00:06.5]} 95... Rh6 {[%clk 0:00:02.2]} 96. Rd6 {[%clk 0:00:06.9]}
96... Rh2 {[%clk 0:00:01.8]} 97. Kb6 {[%clk 0:00:06.9]} 97... Rh8 {[%clk
0:00:01.6]} 98. Rf6 {[%clk 0:00:05.9]} 98... Ka8 {[%clk 0:00:02.5]} 99. Ka6
{[%clk 0:00:06.1]} 99... Rb8 {[%clk 0:00:02.8]} 100. Rf7 {[%clk 0:00:05.9]}
100... Re8 {[%clk 0:00:03.7]} 101. Ra7+ {[%clk 0:00:05.9]} 101... Kb8 {[%clk
0:00:04.6]} 102. Rb7+ {[%clk 0:00:06.8]} 102... Ka8 {[%clk 0:00:04.9]} 103. Rg7
{[%clk 0:00:07.7]} 103... Kb8 {[%clk 0:00:05.5]} 104. b6 {[%clk 0:00:07.9]}
104... Ka8 {[%clk 0:00:05.6]} 105. Rc7 {[%clk 0:00:08.1]} 105... Kb8 {[%clk
0:00:05.8]} 106. Rc5 {[%clk 0:00:08.7]} 106... Re1 {[%clk 0:00:05.6]} 107. Ra5
{[%clk 0:00:08.8]} 107... Re6 {[%clk 0:00:04.5]} 108. Ra2 {[%clk 0:00:09.4]}
108... Rf6 {[%clk 0:00:04]} 109. Rg2 {[%clk 0:00:10]} 109... Rf8 {[%clk
0:00:04.6]} 110. Rg7 {[%clk 0:00:10.5]} 110... Rd8 {[%clk 0:00:05.2]} 111. Rh7
{[%clk 0:00:10.8]} 111... Re8 {[%clk 0:00:05.5]} 112. Rh6 {[%clk 0:00:11.5]}
112... Rc8 {[%clk 0:00:06]} 113. Rc6 {[%clk 0:00:12.1]} 113... Rxc6 {[%clk
0:00:06.2]} 114. Kb5 {[%clk 0:00:12.7]} 114... Rh6 {[%clk 0:00:07.1]} 115. Ka6
{[%clk 0:00:13.4]} 115... Rg6 {[%clk 0:00:07.2]} 116. Kb5 {[%clk 0:00:14.3]}
116... Kb7 {[%clk 0:00:07.9]} 117. Kc5 {[%clk 0:00:15.2]} 117... Rc6+ {[%clk
0:00:07.9]} 118. Kd5 {[%clk 0:00:16.1]} 118... Rxb6 {[%clk 0:00:08.8]} 119. Kd4
{[%clk 0:00:17]} 119... Rc6 {[%clk 0:00:09.3]} 120. Ke4 {[%clk 0:00:17.9]}
120... Kb6 {[%clk 0:00:10.1]} 121. Ke5 {[%clk 0:00:18.8]} 121... Kc5 {[%clk
0:00:10.5]} 122. Kf5 {[%clk 0:00:19.7]} 122... Rd6 {[%clk 0:00:11.4]} 123. Kf4
{[%clk 0:00:20.6]} 123... Rd5 {[%clk 0:00:11.8]} 124. Kf3 {[%clk 0:00:21.5]}
124... Rd4 {[%clk 0:00:12.2]} 125. Ke3 {[%clk 0:00:21.5]} 125... Kd5 {[%clk
0:00:13.1]} 126. Ke2 {[%clk 0:00:22.4]} 126... Ke4 {[%clk 0:00:13.4]} 127. Kf2
{[%clk 0:00:23.3]} 0-1

[Event "*** Titled Tuesday Blitz"]
[Site "Chess.com"]
[Date "2020.12.01"]
[Round "10"]
[White "parintele_chess"]
[Black "Sacbutt"]
[Result "1-0"]
[WhiteElo "2196"]
[BlackElo "2241"]
[TimeControl "180+1"]
[EndTime "11:48:50 PST"]
[Termination "parintele_chess won by resignation"]

1. c4 {[%clk 0:03:00]} 1... c5 {[%clk 0:02:58.5]} 2. g3 {[%clk 0:02:59]} 2...
Nc6 {[%clk 0:02:59.3]} 3. Bg2 {[%clk 0:02:58.9]} 3... g6 {[%clk 0:03:00]} 4. Nc3
{[%clk 0:02:59]} 4... Bg7 {[%clk 0:03:00.5]} 5. a3 {[%clk 0:02:59.4]} 5... e5
{[%clk 0:02:58.6]} 6. b4 {[%clk 0:02:59.3]} 6... cxb4 {[%clk 0:02:58.1]} 7. axb4
{[%clk 0:03:00.2]} 7... Nxb4 {[%clk 0:02:56.7]} 8. Ba3 {[%clk 0:03:00]} 8... Nc6
{[%clk 0:02:56.6]} 9. Nb5 {[%clk 0:03:00]} 9... Nge7 {[%clk 0:02:55.7]} 10. Bd6
{[%clk 0:02:53.1]} 10... Nf5 {[%clk 0:02:40.4]} 11. Nc7+ {[%clk 0:02:50.9]} 1-0

[Event "*** Titled Tuesday Blitz"]
[Site "Chess.com"]
[Date "2020.12.01"]
[Round "10"]
[White "RaneshRatnesan"]
[Black "ObidObad"]
[Result "1-0"]
[WhiteElo "2166"]
[BlackElo "2288"]
[TimeControl "180+1"]
[EndTime "11:50:24 PST"]
[Termination "RaneshRatnesan won by resignation"]

1. d4 {[%clk 0:03:00.9]} 1... e6 {[%clk 0:02:52.6]} 2. c4 {[%clk 0:03:00]} 2...
Ne7 {[%clk 0:02:53.5]} 3. Nf3 {[%clk 0:02:56.4]} 3... Ng6 {[%clk 0:02:53.8]} 4.
h4 {[%clk 0:02:55.2]} 4... h5 {[%clk 0:02:52.9]} 5. Nc3 {[%clk 0:02:54.2]} 5...
d5 {[%clk 0:02:52.6]} 6. Bg5 {[%clk 0:02:50.8]} 6... Be7 {[%clk 0:02:52.1]} 7.
e3 {[%clk 0:02:51.1]} 7... c6 {[%clk 0:02:49.5]} 8. Bd3 {[%clk 0:02:50.8]} 8...
Nf8 {[%clk 0:02:38.6]} 9. Qc2 {[%clk 0:02:40.1]} 9... Nbd7 {[%clk 0:02:35.2]}
10. e4 {[%clk 0:02:33.3]} 10... dxc4 {[%clk 0:02:31.4]} 11. Bxc4 {[%clk
0:02:33.1]} 11... Nb6 {[%clk 0:02:23.6]} 12. Bb3 {[%clk 0:02:32.9]} 12... a5
{[%clk 0:02:20.1]} 13. a3 {[%clk 0:02:29]} 13... Qd6 {[%clk 0:02:17]} 14. e5
{[%clk 0:02:20.1]} 14... Qd8 {[%clk 0:02:13.1]} 15. Ne4 {[%clk 0:02:20.4]} 15...
Nd5 {[%clk 0:02:04.3]} 16. Nd6+ {[%clk 0:02:16.4]} 16... Kd7 {[%clk 0:02:02.6]}
17. Nxf7 {[%clk 0:02:16.5]} 17... Bxa3 {[%clk 0:01:57.7]} 1-0

[Event "*** Titled Tuesday Blitz"]
[Site "Chess.com"]
[Date "2020.12.01"]
[Round "10"]
[White "emiliochess"]
[Black "Twannibal"]
[Result "0-1"]
[WhiteElo "2366"]
[BlackElo "2505"]
[TimeControl "180+1"]
[EndTime "11:50:29 PST"]
[Termination "Twannibal won by resignation"]

1. d4 {[%clk 0:03:00.9]} 1... Nf6 {[%clk 0:02:59.9]} 2. Bf4 {[%clk 0:03:01]}
2... d5 {[%clk 0:03:00]} 3. e3 {[%clk 0:03:00.8]} 3... c5 {[%clk 0:03:00.4]} 4.
c3 {[%clk 0:03:00.1]} 4... Nc6 {[%clk 0:02:59.4]} 5. Bd3 {[%clk 0:02:59.2]} 5...
Qb6 {[%clk 0:02:47.9]} 6. Qb3 {[%clk 0:02:47.1]} 6... c4 {[%clk 0:02:47.5]} 7.
Qxb6 {[%clk 0:02:47.2]} 7... axb6 {[%clk 0:02:48.4]} 8. Bc2 {[%clk 0:02:47.7]}
8... b5 {[%clk 0:02:48.8]} 9. a3 {[%clk 0:02:43.3]} 9... b4 {[%clk 0:02:48.5]}
10. cxb4 {[%clk 0:02:44.2]} 10... Nxb4 {[%clk 0:02:47.3]} 11. Kd1 {[%clk
0:02:44.5]} 11... Nxc2 {[%clk 0:02:43.1]} 12. Kxc2 {[%clk 0:02:45.4]} 12... Ne4
{[%clk 0:02:43.6]} 13. Bg3 {[%clk 0:02:44.1]} 13... Bf5 {[%clk 0:02:35.1]} 14.
Kc1 {[%clk 0:02:38.8]} 14... e5 {[%clk 0:02:30.8]} 15. dxe5 {[%clk 0:02:15.6]}
15... Nc5 {[%clk 0:02:29.5]} 16. Ne2 {[%clk 0:02:04.3]} 16... Nb3+ {[%clk
0:02:27]} 17. Kd1 {[%clk 0:02:00.8]} 17... Nxa1 {[%clk 0:02:27.4]} 18. Nd4
{[%clk 0:02:01.2]} 18... Bxb1 {[%clk 0:02:26.6]} 19. Kd2 {[%clk 0:01:49.8]}
19... Nb3+ {[%clk 0:02:18.8]} 20. Nxb3 {[%clk 0:01:48.7]} 20... cxb3 {[%clk
0:02:19.7]} 21. Rxb1 {[%clk 0:01:48.3]} 21... Rc8 {[%clk 0:02:19.4]} 0-1

[Event "*** Titled Tuesday Blitz"]
[Site "Chess.com"]
[Date "2020.12.01"]
[Round "10"]
[White "Bodnar_Mykola"]
[Black "PriSachu"]
[Result "0-1"]
[WhiteElo "2385"]
[BlackElo "2526"]
[TimeControl "180+1"]
[EndTime "11:50:34 PST"]
[Termination "PriSachu won by resignation"]

1. e4 {[%clk 0:03:00.9]} 1... e5 {[%clk 0:02:58.7]} 2. Nf3 {[%clk 0:03:01]} 2...
Nc6 {[%clk 0:02:58.9]} 3. Bb5 {[%clk 0:03:00.2]} 3... a6 {[%clk 0:02:59.1]} 4.
Ba4 {[%clk 0:03:00]} 4... Nf6 {[%clk 0:02:59.3]} 5. O-O {[%clk 0:02:59.6]} 5...
Nxe4 {[%clk 0:02:58.1]} 6. Re1 {[%clk 0:02:58.8]} 6... Nc5 {[%clk 0:02:56.8]} 7.
Bxc6 {[%clk 0:02:54.3]} 7... dxc6 {[%clk 0:02:56.4]} 8. Nxe5 {[%clk 0:02:54.7]}
8... Be7 {[%clk 0:02:56.2]} 9. Qe2 {[%clk 0:02:46.5]} 9... Ne6 {[%clk
0:02:53.3]} 10. c3 {[%clk 0:02:39.8]} 10... O-O {[%clk 0:02:53.1]} 11. d4 {[%clk
0:02:40.3]} 11... Re8 {[%clk 0:02:50.9]} 12. Qf3 {[%clk 0:02:32.2]} 12... f6
{[%clk 0:02:50]} 13. Nd3 {[%clk 0:02:30.9]} 13... Bd6 {[%clk 0:02:41.3]} 14. Nd2
{[%clk 0:02:25.3]} 14... Ng5 {[%clk 0:02:35.7]} 15. Qd1 {[%clk 0:02:12.1]} 15...
Bf5 {[%clk 0:02:27.9]} 16. Rxe8+ {[%clk 0:02:00]} 16... Qxe8 {[%clk 0:02:27.3]}
17. Nf1 {[%clk 0:02:00.9]} 17... Qg6 {[%clk 0:02:04.4]} 18. Nf4 {[%clk
0:01:58.7]} 18... Bxf4 {[%clk 0:02:04]} 19. Bxf4 {[%clk 0:01:59.6]} 19... Nh3+
{[%clk 0:02:04.1]} 20. Kh1 {[%clk 0:01:59.3]} 20... Nxf2+ {[%clk 0:02:02.5]} 0-1